bitfinex/quotes_SOLUSD_20250907
["timestamp","ask_amount","ask_price","bid_price","bid_amount"]
[1757213694787,0.61,202.92,202.9,4.92740584]
[1757213696792,132.91,202.92,202.9,4.92740584]
[1757213704409,132.97,202.92,202.9,4.92740584]
[1757213706022,132.36,202.92,202.9,4.92740584]
[1757213706321,0.06,202.92,202.91,0.71]
[1757213706915,0.06,202.92,202.91,40.19243521]
[1757213707306,0.06,202.92,202.91,40.90243521]
[1757213708101,0.06,202.92,202.91,45.83072854]
[1757213709044,0.06,202.92,202.91,49.46119766]
[1757213710418,0.06,202.92,202.91,11.24119766]
[1757213710623,0.06,202.92,202.91,49.44119766]
[1757213711739,0.06,202.92,202.91,11.24119766]
[1757213712142,0.06,202.92,202.91,49.44119766]
[1757213712516,0.06,202.92,202.91,49.42119766]
[1757213715927,0.06,202.92,202.91,52.26029726]
[1757213719235,0.06,202.92,202.91,13.37029726]
[1757213719434,0.67,202.95,202.91,40.11243521]
[1757213719627,0.67,202.95,202.92,3.63035758]
[1757213719810,0.67,202.95,202.93,38.24]
[1757213720011,3.93517043,202.94,202.93,3.93517043]
[1757213720217,44.14076444,202.94,202.87,8.04]
[1757213720415,3.93517043,202.9,202.87,8.04]
[1757213720623,0.61,202.89,202.85,40.33844767]
[1757213720813,3.93517043,202.9,202.86,3.63528153]
[1757213721017,0.61,202.89,202.86,3.63528153]
[1757213721332,0.61,202.88,202.85,35.3]
[1757213721532,3.93517043,202.9,202.86,3.63715216]
[1757213721533,0.61,202.87,202.86,3.63715216]
[1757213722528,0.61,202.87,202.86,3.63871513]
[1757213724241,5.53825441,202.92,202.88,3.64079597]
[1757213724616,0.61,202.92,202.88,3.64079597]
[1757213724821,0.61,202.91,202.88,3.64079597]
[1757213725148,4.54517043,202.91,202.84,0.66]
[1757213725347,3.93517043,202.89,202.85,44.81819132]
[1757213725647,3.93517043,202.89,202.86,3.64610671]
[1757213725648,0.61,202.88,202.86,3.64610671]
[1757213725835,8.86397877,202.89,202.87,3.64610671]
[1757213726029,8.86397877,202.89,202.85,38.32]
[1757213726235,8.86397877,202.89,202.86,3.64847027]
[1757213726427,0.61,202.88,202.87,3.64847027]
[1757213726642,8.86397877,202.89,202.87,3.64847027]
[1757213726833,0.61,202.88,202.85,38.32]
[1757213727033,0.61,202.87,202.86,3.64875548]
[1757213728226,0.61,202.87,202.86,6.50772284]
[1757213729750,4.54517043,202.87,202.86,3.64875548]
[1757213730048,0.61,202.87,202.86,3.64875548]
[1757213730263,4.54517043,202.87,202.86,3.64875548]
[1757213731955,8.86441138,202.88,202.84,15.45983227]
[1757213732131,8.86441138,202.88,202.85,3.65520658]
[1757213732332,8.86441138,202.88,202.84,15.45983227]
[1757213732541,8.86441138,202.88,202.85,3.65569007]
[1757213732753,9.47441138,202.88,202.84,15.45983227]
[1757213732927,8.86441138,202.88,202.85,4.31569007]
[1757213733231,8.86441138,202.88,202.84,14.79983227]
[1757213733431,9.47441138,202.88,202.85,3.65603492]
[1757213733644,9.47441138,202.88,202.84,15.45983227]
[1757213733854,9.47441138,202.88,202.85,3.65603492]
[1757213734031,9.47441138,202.88,202.84,15.45983227]
[1757213734233,9.47441138,202.88,202.85,3.65649547]
[1757213734435,9.47441138,202.88,202.84,14.79983227]
[1757213734634,9.47446966,202.87,202.85,3.65622672]
[1757213734834,9.47446966,202.87,202.84,14.79983227]
[1757213735036,9.47446966,202.87,202.85,3.65622813]
[1757213735243,9.47446966,202.87,202.84,14.79983227]
[1757213735452,8.86446966,202.87,202.85,3.65584654]
[1757213735758,8.86446966,202.87,202.85,0.66]
[1757213735945,8.86446966,202.87,202.84,14.79983227]
[1757213736146,8.86446966,202.87,202.85,3.65549058]
[1757213736348,8.86446966,202.87,202.84,15.45983227]
[1757213736642,13.59559401,202.92,202.85,7.17532649]
[1757213736846,3.93517043,202.91,202.86,3.65512481]
[1757213737053,3.93517043,202.91,202.87,4.31356519]
[1757213737233,3.93517043,202.91,202.87,0.66]
[1757213737442,4.54517043,202.91,202.87,14.79764224]
[1757213738556,9.47358681,202.91,202.85,38.94]
[1757213738857,9.47358681,202.91,202.86,3.65380642]
[1757213739073,9.47358681,202.91,202.87,3.65380642]
[1757213739252,9.47358681,202.91,202.86,0.66]
[1757213739457,9.47358681,202.91,202.87,3.6537147]
[1757213739647,9.47379977,202.9,202.86,0.66]
[1757213739841,3.93517043,202.91,202.87,4.31374134]
[1757213740149,3.93517043,202.91,202.87,0.66]
[1757213740351,4.54517043,202.91,202.87,0.66]
[1757213741338,132.3,202.9,202.87,0.66]
[1757213741536,132.3,202.9,202.86,3.65348561]
[1757213741839,132.3,202.9,202.86,0.66]
[1757213742041,132.3,202.9,202.87,0.66]
[1757213742247,132.3,202.9,202.88,0.66]
[1757213742660,4.98806618,202.92,202.88,0.66]
[1757213742661,0.06,202.92,202.88,0.66]
[1757213742837,0.06,202.92,202.89,41.89112652]
[1757213743042,0.06,202.92,202.9,4.31112652]
[1757213743348,0.06,202.92,202.91,8.57941985]
[1757213743549,0.06,202.92,202.91,9.23941985]
[1757213744339,0.06,202.92,202.91,12.09569459]
[1757213747561,0.06,202.92,202.91,14.0679353]
[1757213747739,0.06,202.92,202.91,10.41680878]
[1757213747944,0.06,202.92,202.91,14.06643011]
[1757213748366,0.06,202.92,202.91,52.34643011]
[1757213748742,0.06,202.92,202.91,14.06643011]
[1757213749073,0.06,202.92,202.91,52.34643011]
[1757213749638,1e-08,202.92,202.91,52.34643011]
[1757213751446,1e-08,202.92,202.91,52.34161752]
[1757213753473,1e-08,202.92,202.91,14.06161752]
[1757213753653,1e-08,202.92,202.91,52.54161752]
[1757213754669,1e-08,202.92,202.91,57.47161752]
[1757213754860,1e-08,202.92,202.91,52.54161752]
[1757213755063,1e-08,202.92,202.91,52.52161752]
[1757213757365,1e-08,202.92,202.91,13.40161752]
[1757213757568,1e-08,202.92,202.91,46.91332419]
[1757213757870,1e-08,202.92,202.91,51.84161752]
[1757213758255,1e-08,202.92,202.91,51.87161752]
[1757213760666,1e-08,202.92,202.91,8.50332419]
[1757213760869,1e-08,202.92,202.91,42.09480874]
[1757213761669,1e-08,202.92,202.91,47.02310207]
[1757213764260,1e-08,202.92,202.91,47.69310207]
[1757213765988,1e-08,202.92,202.91,42.09480874]
[1757213766667,0.61000001,202.92,202.91,3.67480874]
[1757213766864,0.61000001,202.92,202.91,0.03]
[1757213767267,0.61000001,202.92,202.91,3.67697058]
[1757213767490,0.61000001,202.92,202.91,0.03]
[1757213767778,0.61000001,202.92,202.91,3.67697058]
[1757213767974,1e-08,202.92,202.91,0.03]
[1757213768370,1e-08,202.92,202.91,3.6769241]
[1757213768578,1e-08,202.92,202.91,0.03]
[1757213768769,0.61000001,202.92,202.91,0.03]
[1757213768969,0.61000001,202.92,202.91,3.6769241]
[1757213769267,1e-08,202.92,202.91,0.03]
[1757213769679,1e-08,202.92,202.91,3.6769241]
[1757213769882,1e-08,202.92,202.91,0.03]
[1757213770066,1e-08,202.92,202.91,3.6769241]
[1757213770463,1e-08,202.92,202.91,0.03]
[1757213770663,1e-08,202.92,202.91,3.6769241]
[1757213771280,1e-08,202.92,202.91,0.03]
[1757213771476,1e-08,202.92,202.91,3.6769241]
[1757213771676,3.12782958,202.92,202.91,0.03]
[1757213772071,1e-08,202.92,202.91,0.03]
[1757213772379,0.61000001,202.92,202.91,0.03]
[1757213772786,21.65147405,202.92,202.91,0.03]
[1757213773276,16.72342359,202.92,202.91,0.03]
[1757213773480,16.11342359,202.92,202.91,0.03]
[1757213773980,1e-08,202.92,202.91,0.03]
[1757213779671,1e-08,202.92,202.91,0.72]
[1757213779875,1e-08,202.92,202.91,42.81304907]
[1757213780078,1e-08,202.92,202.91,45.67371372]
[1757213780472,1e-08,202.92,202.91,50.60200705]
[1757213781867,1e-08,202.92,202.91,45.69371372]
[1757213782978,1e-08,202.92,202.91,45.69483529]
[1757213787178,1e-08,202.92,202.91,6.54483529]
[1757213787379,1e-08,202.92,202.91,3.68417064]
[1757213789402,0.61000001,202.92,202.91,0.03]
[1757213789606,1e-08,202.92,202.91,0.03]
[1757213789804,16.72342359,202.92,202.91,0.03]
[1757213789978,14.20559402,202.92,202.91,0.03]
[1757213790483,1e-08,202.92,202.91,0.03]
[1757213792598,1e-08,202.92,202.91,3.6883286]
[1757213793193,1e-08,202.92,202.91,4.3783286]
[1757213793497,1e-08,202.92,202.91,3.6883286]
[1757213793695,1e-08,202.92,202.91,3.68776481]
[1757213799610,1e-08,202.92,202.91,6.55794604]
[1757213800996,1e-08,202.92,202.91,7.24794604]
[1757213802618,1e-08,202.92,202.91,4.37776481]
[1757213803205,13.59559402,202.92,202.91,6.56066409]
[1757213807396,13.59559402,202.92,202.91,3.68776481]
[1757213807807,18.52364448,202.92,202.91,3.68776481]
[1757213808508,13.59559402,202.92,202.91,6.55920773]
[1757213810228,21.65147405,202.92,202.91,3.68776481]
[1757213811721,19.13364448,202.92,202.91,3.68776481]
[1757213811918,21.65147405,202.92,202.91,3.68776481]
[1757213813425,21.65147405,202.92,202.91,0.03]
[1757213817102,21.04147405,202.92,202.91,0.03]
[1757213818610,59.24147405,202.92,202.91,0.73]
[1757213819832,21.04147405,202.92,202.91,0.73]
[1757213820029,59.24147405,202.92,202.91,0.73]
[1757213820331,59.24147405,202.92,202.91,0.03]
[1757213820527,54.31342359,202.92,202.91,4.39511571]
[1757213821337,54.31342359,202.92,202.91,0.73]
[1757213821515,55.73186361,202.92,202.91,4.39502101]
[1757213822027,55.73186361,202.92,202.91,3.69502101]
[1757213822633,60.65991407,202.92,202.91,3.69502101]
[1757213823526,56.72364448,202.92,202.91,3.69502101]
[1757213823732,60.65991407,202.92,202.91,4.39502101]
[1757213823913,55.73186361,202.92,202.91,3.69502101]
[1757213824325,55.73186361,202.92,202.91,4.39502101]
[1757213824710,51.79559402,202.92,202.91,4.39502101]
[1757213825129,26.00000001,202.92,202.91,4.39502101]
[1757213825827,1e-08,202.92,202.91,4.39502101]
[1757213828842,1e-08,202.92,202.91,4.39594047]
[1757213830631,1e-08,202.92,202.91,7.26560997]
[1757213833841,17.53186361,202.92,202.91,3.69594047]
[1757213834053,17.53186361,202.92,202.91,0.03]
[1757213834054,56.26186361,202.92,202.91,0.03]
[1757213834971,61.18991407,202.92,202.91,0.03]
[1757213836145,57.25364448,202.92,202.91,0.03]
[1757213836442,60.57991407,202.92,202.91,3.69855866]
[1757213836826,60.57991407,202.92,202.91,0.03]
[1757213839049,60.57991407,202.92,202.91,3.69862728]
[1757213840028,60.57991407,202.92,202.91,0.03]
[1757213843245,61.18991407,202.92,202.91,0.03]
[1757213846255,87.18991407,202.92,202.91,0.03]
[1757213848426,61.18991407,202.92,202.91,0.03]
[1757213849050,63.16341976,202.92,202.91,0.03]
[1757213853559,62.55341976,202.92,202.91,0.03]
[1757213856033,18.52364448,202.92,202.91,0.03]
[1757213856340,60.45991407,202.92,202.91,0.69]
[1757213858963,62.43322504,202.92,202.91,0.69]
[1757213859860,62.43322504,202.92,202.91,0.03]
[1757213860364,63.04322504,202.92,202.91,0.03]
[1757213860744,62.43322504,202.92,202.91,0.03]
[1757213862169,63.04322504,202.92,202.91,0.03]
[1757213862465,62.43322504,202.92,202.91,0.03]
[1757213863165,63.04322504,202.92,202.91,0.03]
[1757213863764,62.43322504,202.92,202.91,0.03]
[1757213865356,62.43322504,202.92,202.91,0.69]
[1757213867447,62.43322504,202.92,202.91,0.03]
[1757213869354,62.43322504,202.92,202.91,0.73]
[1757213872175,58.49695545,202.92,202.91,0.73]
[1757213872474,62.43322504,202.92,202.91,0.73]
[1757213873875,88.43322504,202.92,202.91,0.73]
[1757213874676,41.56890499,202.92,202.91,0.73]
[1757213874972,81.51186361,202.92,202.91,4.40041787]
[1757213876056,81.51186361,202.92,202.91,4.40018035]
[1757213876868,17.53186361,202.92,202.91,4.40018035]
[1757213877168,55.51186361,202.92,202.91,7.26711502]
[1757213878356,55.51186361,202.92,202.91,4.40018035]
[1757213881478,54.0949954,202.92,202.91,4.40018035]
[1757213882875,54.0949954,202.92,202.91,7.26684053]
[1757213884872,54.0949954,202.92,202.91,4.40018035]
[1757213885580,54.0949954,202.92,202.91,4.39963208]
[1757213886574,40.49940139,202.92,202.91,4.39963208]
[1757213889974,40.49940139,202.92,202.91,7.26431]
[1757213890383,40.49940139,202.92,202.91,4.39963208]
[1757213890570,37.98000001,202.92,202.91,4.39963208]
[1757213890772,40.49940139,202.92,202.91,4.39963208]
[1757213891586,37.98000001,202.92,202.91,4.39963208]
[1757213891776,40.49940139,202.92,202.91,4.39963208]
[1757213897477,40.49940139,202.92,202.91,3.69963208]
[1757213897682,1e-08,202.92,202.91,4.39963208]
[1757213897878,12.28580914,202.95,202.91,12.19477596]
[1757213898072,12.28580914,202.95,202.92,7.23648263]
[1757213898277,0.06,202.95,202.93,6.53648263]
[1757213898477,0.03397658,202.95,202.94,6.53648263]
[1757213898675,0.03397658,202.95,202.94,7.23648263]
[1757213898877,0.06,202.97,202.94,9.75588401]
[1757213899085,0.06,202.97,202.95,7.25648263]
[1757213899288,0.06,202.97,202.96,6.53648263]
[1757213899788,0.06,202.97,202.96,12.18356185]
[1757213899983,0.06,202.97,202.96,26.97317954]
[1757213907369,0.06,202.97,202.96,24.10632899]
[1757213908973,0.06,202.97,202.96,18.45924977]
[1757213909190,2.57940138,202.97,202.96,18.45924977]
[1757213909492,2.57940138,202.97,202.96,3.66963208]
[1757213910114,2.57940138,202.97,202.96,4.38963208]
[1757213910282,0.06,202.97,202.96,4.38963208]
[1757213910684,0.06,202.97,202.96,3.66963208]
[1757213911003,0.06,202.97,202.96,4.38963208]
[1757213912892,0.06,202.97,202.96,19.17997891]
[1757213914010,0.06,202.97,202.96,24.10705813]
[1757213914211,0.06,202.97,202.96,19.17997891]
[1757213914675,0.06,202.97,202.96,3.66963208]
[1757213915201,0.06,202.97,202.96,4.38963208]
[1757213917505,0.06,202.97,202.96,19.18070813]
[1757213918208,0.06,202.97,202.96,19.15600779]
[1757213918803,0.06,202.97,202.96,4.36493174]
[1757213918983,0.06,202.97,202.96,9.29201096]
[1757213920810,0.06,202.97,202.96,4.36493174]
[1757213921001,0.06,202.97,202.96,3.64493174]
[1757213921694,0.06,202.97,202.96,0.72]
[1757213922011,0.06,202.97,202.96,3.64592715]
[1757213923412,0.06,202.97,202.96,4.36592715]
[1757213923710,0.06,202.97,202.96,3.64592715]
[1757213924583,3.18940138,202.97,202.96,3.64592715]
[1757213924811,2.57940138,202.97,202.96,3.64592715]
[1757213926694,59.65183186,202.97,202.96,3.64592715]
[1757213927614,64.60992503,202.97,202.96,3.64592715]
[1757213933315,13.59559401,202.96,202.95,0.03]
[1757213933497,16.11499539,202.96,202.95,3.6850478]
[1757213933699,37.94,202.96,202.95,4.3850478]
[1757213933904,40.45940138,202.96,202.95,4.3850478]
[1757213935110,37.94,202.96,202.95,4.3850478]
[1757213935295,40.45940138,202.96,202.95,4.3850478]
[1757213936313,40.45940138,202.96,202.95,4.38502121]
[1757213937115,191.28207461,202.96,202.95,3.68502121]
[1757213941028,172.75940138,202.96,202.95,3.68502121]
[1757213942502,134.81940138,202.96,202.95,3.68502121]
[1757213942701,172.75940138,202.96,202.95,3.68502121]
[1757213943228,40.45940138,202.96,202.95,4.38502121]
[1757213943401,37.94,202.96,202.95,4.38502121]
[1757213943603,41.87530412,202.96,202.95,4.38502121]
[1757213944823,3.93530412,202.96,202.95,4.38502121]
[1757213944998,41.87530412,202.96,202.95,4.38502121]
[1757213945198,3.93530412,202.96,202.95,4.38502121]
[1757213945912,29.93530412,202.96,202.95,4.38502121]
[1757213946119,67.87530412,202.96,202.95,4.38502121]
[1757213946714,41.87530412,202.96,202.95,4.38502121]
[1757213947303,3.99530412,202.97,202.95,4.38502121]
[1757213947514,38.0,202.97,202.96,4.35502121]
[1757213948525,0.06,202.97,202.96,4.35502121]
[1757213949023,132.36,202.97,202.96,4.35502121]
[1757213949252,136.29530412,202.97,202.96,4.35502121]
[1757213949531,136.29530412,202.97,202.96,3.65502121]
[1757213950820,141.22214059,202.97,202.96,3.65502121]
[1757213954802,8.92214059,202.97,202.96,3.65502121]
[1757213955628,4.98683647,202.97,202.96,3.65502121]
[1757213955832,8.92214059,202.97,202.96,3.65502121]
[1757213960340,22.5177346,202.97,202.96,3.65502121]
[1757213960639,22.5177346,202.97,202.96,3.66410073]
[1757213970544,23.1277346,202.97,202.96,3.66410073]
[1757213973039,22.5177346,202.97,202.96,3.66410073]
[1757213975243,18.52267323,202.96,202.95,0.03]
[1757213976451,60.37797735,202.96,202.95,6.57202142]
[1757213985548,60.98797735,202.96,202.95,6.57202142]
[1757213985770,60.98797735,202.96,202.95,3.70107311]
[1757213986759,64.68905046,202.96,202.95,3.70107311]
[1757213987664,64.68905046,202.96,202.95,0.03]
[1757213993374,64.07905046,202.96,202.95,0.03]
[1757213994446,39.59559401,202.93,202.92,0.03]
[1757213994655,81.45089813,202.93,202.92,0.03]
[1757213994858,82.06089813,202.93,202.92,0.03]
[1757213995058,84.03401442,202.93,202.92,0.03]
[1757213996873,88.96182203,202.93,202.92,0.03]
[1757213998475,88.35182203,202.93,202.92,0.03]
[1757214001173,88.96182203,202.93,202.92,0.03]
[1757214001678,84.39651791,202.93,202.92,0.68]
[1757214001847,88.33182203,202.93,202.92,0.68]
[1757214003552,86.91600926,202.93,202.92,0.68]
[1757214003864,44.08820165,202.93,202.92,0.68]
[1757214004053,80.01508536,202.93,202.92,0.68]
[1757214004968,42.11508536,202.93,202.92,0.68]
[1757214005174,80.01508536,202.93,202.92,0.68]
[1757214011077,39.59559401,202.93,202.92,0.68]
[1757214011258,42.11508536,202.93,202.92,0.68]
[1757214011460,80.01508536,202.93,202.92,0.68]
[1757214012064,0.06,202.96,202.92,0.68]
[1757214012253,37.9,202.95,202.92,0.68]
[1757214012975,37.9,202.95,202.92,5.60792768]
[1757214013180,37.9,202.95,202.93,0.65]
[1757214015384,13.65559401,202.96,202.93,0.65]
[1757214015590,37.9,202.95,202.94,3.54644025]
[1757214015778,37.9,202.95,202.94,4.19644025]
[1757214017288,13.65559401,202.96,202.94,4.19644025]
[1757214017493,37.9,202.95,202.92,4.95792768]
[1757214017699,37.9,202.95,202.93,6.39888447]
[1757214017865,0.06,202.96,202.94,8.47383617]
[1757214018068,0.06,202.96,202.95,7.04763702]
[1757214019784,0.06,202.96,202.95,11.97495902]
[1757214020467,0.06,202.96,202.95,7.04763702]
[1757214020664,0.06,202.96,202.95,4.19572092]
[1757214020863,0.06,202.96,202.95,0.65]
[1757214021770,0.06,202.96,202.95,4.22514436]
[1757214022173,0.06,202.96,202.95,0.65]
[1757214026273,0.06,202.96,202.95,12.00155637]
[1757214026798,0.06,202.96,202.95,24.00651539]
[1757214028594,0.06,202.96,202.95,6.42423437]
[1757214028799,0.06,202.96,202.95,3.57445899]
[1757214029100,0.06,202.96,202.94,0.7]
[1757214029677,2.51949135,202.95,202.94,0.03]
[1757214030777,40.39949135,202.95,202.94,0.03]
[1757214031492,54.60508536,202.95,202.94,0.03]
[1757214031684,59.53240736,202.95,202.94,0.03]
[1757214033300,61.50532901,202.95,202.94,0.03]
[1757214033596,39.59559401,202.93,202.92,0.03]
[1757214033800,79.99508536,202.93,202.92,0.03]
[1757214033983,85.53289297,202.93,202.92,0.03]
[1757214036680,87.5061066,202.93,202.92,0.03]
[1757214038407,49.6261066,202.93,202.92,0.03]
[1757214038584,87.5061066,202.93,202.92,0.03]
[1757214040193,61.5061066,202.93,202.92,0.03]
[1757214046114,13.59559401,202.92,202.91,0.03]
[1757214046415,26.19305076,202.92,202.91,0.03]
[1757214046617,26.80305076,202.92,202.91,0.03]
[1757214046794,28.77655645,202.92,202.91,0.03]
[1757214047108,28.77655645,202.92,202.9,0.03]
[1757214047109,18.52388734,202.91,202.9,0.03]
[1757214047298,69.00134409,202.91,202.9,0.03]
[1757214047495,69.00134409,202.91,202.88,0.03]
[1757214047496,26.19305076,202.9,202.88,0.03]
[1757214047697,53.99508536,202.89,202.88,0.03]
[1757214048003,54.60508536,202.89,202.88,0.03]
[1757214048206,56.57888319,202.89,202.88,0.03]
[1757214048405,61.50766233,202.89,202.88,0.03]
[1757214052994,18.52461609,202.88,202.87,0.03]
[1757214053216,21.65410744,202.88,202.87,0.03]
[1757214053716,23.01800267,202.88,202.87,0.03]
[1757214060604,23.62800267,202.88,202.87,0.03]
[1757214060804,23.01800267,202.88,202.87,0.03]
[1757214063035,39.59559401,202.84,202.83,0.03]
[1757214063237,13.59559401,202.79,202.78,0.71]
[1757214063531,55.41837289,202.79,202.78,0.71]
[1757214063698,57.39285274,202.79,202.78,0.71]
[1757214064828,62.32406236,202.79,202.78,0.71]
[1757214065526,13.59559401,202.75,202.74,0.03]
[1757214065837,26.0,202.76,202.74,0.03]
[1757214065838,67.82277888,202.76,202.74,0.03]
[1757214066037,67.82277888,202.76,202.74,0.74]
[1757214070620,132.3,202.75,202.74,0.74]
[1757214072618,136.24277888,202.75,202.74,0.74]
[1757214078325,149.83837289,202.75,202.74,0.03]
[1757214078733,149.83837289,202.75,202.74,0.74]
[1757214080346,145.89559401,202.75,202.74,0.74]
[1757214080545,149.83837289,202.75,202.74,0.74]
[1757214082048,187.71837289,202.75,202.74,0.74]
[1757214082349,55.41837289,202.75,202.74,0.74]
[1757214083260,8.51411867,202.77,202.74,0.74]
[1757214083261,3.58233978,202.77,202.74,0.74]
[1757214083458,132.3,202.79,202.74,9.25617334]
[1757214083628,132.3,202.79,202.74,4.96242128]
[1757214083828,132.3,202.79,202.75,0.68]
[1757214084244,132.3,202.79,202.76,4.93193923]
[1757214084642,132.3,202.79,202.77,0.68]
[1757214088943,132.3,202.79,202.77,5.61165978]
[1757214089253,132.3,202.79,202.78,3.58585567]
[1757214089547,132.3,202.79,202.78,9.19730847]
[1757214090348,132.3,202.79,202.78,12.0507782]
[1757214090543,0.06,202.82,202.78,12.0507782]
[1757214090750,0.06,202.82,202.79,7.1193254]
[1757214090952,0.06,202.82,202.8,6.4393254]
[1757214091255,0.06,202.82,202.81,6.4393254]
[1757214091556,0.06,202.82,202.81,26.85061115]
[1757214095164,1e-08,202.82,202.81,26.85061115]
[1757214095768,1e-08,202.82,202.81,27.34368348]
[1757214097344,1e-08,202.82,202.81,26.85061115]
[1757214099666,1e-08,202.82,202.81,64.69785578]
[1757214106976,1e-08,202.82,202.81,64.72785578]
[1757214107368,1e-08,202.82,202.81,24.01438605]
[1757214107569,1e-08,202.82,202.81,61.87438605]
[1757214112769,1e-08,202.82,202.81,64.71837368]
[1757214119283,1e-08,202.82,202.81,26.85837368]
[1757214119463,1e-08,202.82,202.81,64.69837368]
[1757214130764,1e-08,202.82,202.81,26.85837368]
[1757214130965,0.61000001,202.82,202.81,64.01837368]
[1757214132996,1e-08,202.82,202.81,64.01837368]
[1757214138076,0.61000001,202.82,202.81,21.24765035]
[1757214138282,3.12901666,202.82,202.81,6.46213783]
[1757214139391,3.12901666,202.82,202.81,3.6181502]
[1757214141200,3.12901666,202.82,202.81,0.03]
[1757214142202,21.65509089,202.82,202.81,0.03]
[1757214142380,57.73115749,202.82,202.81,0.03]
[1757214142716,88.39849931,202.82,202.81,0.03]
[1757214143797,80.60461067,202.82,202.81,0.03]
[1757214146299,42.72461067,202.82,202.81,0.03]
[1757214147013,29.12901666,202.82,202.81,0.03]
[1757214148381,1e-08,202.82,202.81,0.03]
[1757214149906,40.96464124,202.84,202.81,0.03]
[1757214151409,37.88,202.84,202.81,0.71]
[1757214151919,28.57901665,202.85,202.82,0.68]
[1757214152493,26.06,202.85,202.82,0.68]
[1757214153510,26.06,202.85,202.81,0.03]
[1757214153710,26.06,202.85,202.81,5.64068123]
[1757214154094,132.3,202.84,202.81,5.64068123]
[1757214154802,0.06,202.85,202.82,7.08618642]
[1757214155003,0.06,202.85,202.83,6.40618642]
[1757214155207,0.06,202.85,202.84,6.40618642]
[1757214155519,0.06,202.85,202.84,9.05910807]
[1757214155732,0.06,202.85,202.84,13.98910215]
[1757214160325,1e-08,202.85,202.84,52.32210155]
[1757214163417,1e-08,202.85,202.84,14.48210155]
[1757214163607,1e-08,202.85,202.84,51.82910215]
[1757214171619,1e-08,202.85,202.84,51.80910215]
[1757214178238,1e-08,202.85,202.84,51.83910215]
[1757214179610,1e-08,202.85,202.84,51.15910215]
[1757214179816,1e-08,202.85,202.84,13.33910215]
[1757214180014,1e-08,202.85,202.84,51.15910215]
[1757214180934,1e-08,202.85,202.84,13.42743644]
[1757214181121,1e-08,202.85,202.84,51.24743644]
[1757214182227,1e-08,202.85,202.84,48.39325766]
[1757214182429,1e-08,202.85,202.84,51.19934857]
[1757214183341,1e-08,202.85,202.84,51.19921109]
[1757214184241,1e-08,202.85,202.84,51.19923389]
[1757214193453,1e-08,202.85,202.84,51.87923389]
[1757214198750,1e-08,202.85,202.84,51.89760135]
[1757214201347,1e-08,202.85,202.84,14.07760135]
[1757214201548,1e-08,202.85,202.84,51.89760135]
[1757214210446,1e-08,202.85,202.84,14.07760135]
[1757214210645,1e-08,202.85,202.84,51.89760135]
[1757214211547,0.56000001,202.85,202.84,49.2446797]
[1757214211744,0.56000001,202.85,202.84,6.49468562]
[1757214212952,18.09201436,202.85,202.84,6.49468562]
[1757214213368,18.09201436,202.85,202.84,3.69901723]
[1757214213567,23.0217654,202.85,202.84,3.69901723]
[1757214214348,23.0217654,202.85,202.84,0.03]
[1757214225978,18.52534506,202.85,202.84,0.03]
[1757214226183,60.8417654,202.85,202.84,0.03]
[1757214227686,60.2817654,202.85,202.84,0.03]
[1757214230962,60.8417654,202.85,202.84,0.03]
[1757214232569,60.8417654,202.85,202.84,0.03]
[1757214234387,60.2817654,202.85,202.84,0.03]
[1757214235969,60.8417654,202.85,202.84,0.03]
[1757214237086,60.2817654,202.85,202.84,0.03]
[1757214243782,56.34534506,202.85,202.84,0.03]
[1757214244094,37.80000001,202.85,202.84,0.69]
[1757214244691,1e-08,202.85,202.84,4.3412562]
[1757214247380,1e-08,202.85,202.84,0.69]
[1757214248398,1e-08,202.85,202.84,4.34277889]
[1757214248578,53.91557724,202.85,202.84,3.68277889]
[1757214248778,53.91557724,202.85,202.84,0.69]
[1757214249374,53.91557724,202.85,202.84,4.34424327]
[1757214251600,37.80000001,202.85,202.84,4.34424327]
[1757214251778,1e-08,202.85,202.84,4.34424327]
[1757214254304,1e-08,202.85,202.84,9.27423735]